{"text_format":"3","workbook":"xlsx","n_sheets":2,"sheets":["Tijdlijn","Over"],"not_rendered":{"charts":1,"images":2,"defined_names":2},"read":"whole","date_system":"1900"}

{"sheet":"Tijdlijn","index":0,"n_rows":49,"n_cols":10,"rows_kept":49}
[]
[]
[]
[{"$nulls":9},"TIJDLIJNSJABLONEN van Vertex42.com"]
[{"$nulls":9},"https://www.vertex42.com/ExcelTemplates/timeline.html"]
[]
[]
[{"$nulls":9},"Tips voor het gebruik van deze sjabloon"]
[{"$nulls":9},"• Voeg hele rijen in en verwijder ze wanneer u de gegevenstabellen bewerkt"]
[{"$nulls":9},"• Laat de labelkolom niet leeg"]
[{"$nulls":9},"• Formatteer de horizontale as om onder- en bovengrenzen in te stellen"]
[{"$nulls":9},"• Geef een verticale positie op tussen -100 en 50"]
[{"$nulls":9},"• Maak afzonderlijke gegevenslabels of markeringen op om specifieke gebeurtenissen te markeren"]
[{"$nulls":9},"• Lees celopmerkingen in de rij van de tabelkop voor meer informatie"]
[]
[{"$nulls":9},"Andere notities"]
[{"$nulls":9},"• Mijlpaal-toelichtingslijnen zijn Y-foutbalken"]
[{"$nulls":9},"• Taak-toelichtingslijnen zijn Y-foutbalken"]
[{"$nulls":9},"• Taakduur zijn X-foutbalken"]
{"$rows_empty":8}
[null,"Taken"]
[null,"Start","Einde","Duur","Label","Vert. Positie","Vert. Lijn"]
[]
[null,"2018-03-28",{"$f":"B31+D31-1","v":"2018-04-11"},15,{"$f":"\"Taak 1,\"&CHAR(10)&TEXT(B31,\"d mmm\")&\" - \"&TEXT(C31,\"d mmm\")","v":"Taak 1,\n28 mrt - 11 apr"},-25,{"$f":"F31","v":-25}]
[null,{"$f":"C31+1","v":"2018-04-12"},"2018-05-01",20,{"$f":"\"Taak 2,\"&CHAR(10)&TEXT(B32,\"d mmm\")&\" - \"&TEXT(C32,\"d mmm\")","v":"Taak 2,\n12 apr - 1 mei"},{"$f":"F31-15","v":-40},{"$f":"F32-F31","v":-15}]
[null,{"$f":"C32+1","v":"2018-05-02"},"2018-05-25",24,{"$f":"\"Taak 3,\"&CHAR(10)&TEXT(B33,\"d mmm\")&\" - \"&TEXT(C33,\"d mmm\")","v":"Taak 3,\n2 mei - 25 mei"},{"$f":"F32-15","v":-55},{"$f":"F33-F32","v":-15}]
[null,"2018-04-28","2018-07-12",76,"Taaklabel 4",-80,{"$f":"F34","v":-80}]
[null,"2018-06-15","2018-07-04",20,"Taaklabel 5",-30,{"$f":"F35","v":-30}]
[null,{"$f":"C35+1","v":"2018-07-05"},"2018-08-03",30,"Taaklabel 6",{"$f":"F35-15","v":-45},{"$f":"F36-F35","v":-15}]
[null,"2018-08-10","2018-09-10",32,"Taaklabel 7",-20,{"$f":"F37","v":-20}]
[null,{"$f":"C37+1","v":"2018-09-11"},"2018-09-15",5,"Taaklabel 8",-60,{"$f":"F38-F37","v":-40}]
[null,{"$f":"C38+1","v":"2018-09-16"},"2018-10-06",21,"Taaklabel 9",{"$f":"F38-15","v":-75},{"$f":"F39-F38","v":-15}]
[{"$nulls":4},"Voeg nieuwe rijen in boven deze"]
[]
[null,"Mijlpalen"]
[null,"Datum",null,null,"Label","Positie"]
[]
[null,"2018-04-02",null,null,{"$f":"\"Start, \"&TEXT(B45,\"d mmm\")","v":"Start, 2 apr"},30]
[null,{"$f":"C33","v":"2018-05-25"},null,null,"Mijlpaal 1",25]
[null,{"$f":"C36","v":"2018-08-03"},null,null,"Mijlpaal 2",20]
[null,{"$f":"C39","v":"2018-10-06"},null,null,{"$f":"\"Leveren, \"&TEXT(B48,\"d mmm\")","v":"Leveren, 6 okt"},15]
[{"$nulls":4},"Voeg nieuwe rijen in boven deze"]

{"sheet":"Over","index":1,"n_rows":19,"n_cols":2,"rows_kept":19}
[]
[null,"PROJECTTIJDLIJN door Vertex42.com"]
[null,"https://www.vertex42.com/ExcelTemplates/project-timeline.html"]
[]
[]
[null,"Over deze sjabloon"]
[null,"Deze sjabloon gebruikt een spreidingsdiagram met gegevenslabels en foutbalken om een projecttijdlijn te maken die zowel mijlpalen als taken met een tijdsduur weergeeft. In tegenstelling tot een Gantt-diagram, waarin elke taak op een afzonderlijke rij wordt weergegeven, bepaalt u de verticale positionering van taken binnen de tijdlijn. U kunt de lengte van de verticale aanlooplijn opgeven om de taakafhankelijkheden te helpen weergeven."]
[]
[null,"Dit type projecttijdlijn is vooral handig voor een algemeen overzicht van een project in plaats van dat het een gedetailleerd overzicht van de werkverdeling weergeeft."]
[]
[null,"Meer sjablonen"]
[null,"Ga naar Vertex42.com om andere tijdlijn- en projectmanagementsjablonen te downloaden."]
[null,"Meer tijdlijnsjablonen"]
[null,"Meer projectmanagementsjablonen"]
[]
[null,"Over Vertex42"]
[null,"Vertex42 biedt professioneel ontworpen werkbladsjablonen voor bedrijven, thuisgebruik en het onderwijs. De meeste van deze sjablonen kunt u gratis downloaden. Deze verzameling omvat een verscheidenheid aan agenda’s, planners en kalenders, en ook werkbladen voor uw persoonlijke financiën, zoals budgettering, schuldverlichting en kredietafschrijvingen."]
[]
[null,"Voor bedrijven zijn er sjablonen beschikbaar voor facturen, urenstaten, voorraadbeheer, financiële overzichten en projectplanning. Docenten en leerlingen/studenten hebben de beschikking over resources zoals bladen voor klassenschema’s, rapporten en aanwezigheidsinfo. Organiseer uw gezinsleven met maaltijdplanners, controlelijsten en sportschema’s. Elke sjabloon is zorgvuldig onderzocht, verfijnd en mettertijd verbeterd op basis van de feedback van duizenden gebruikers."]